Cogmind - Beta 15 @@@ ROGUE MODE // 2025.10.07 @ 11:48:05 Player: shapeshifter Result: Destroyed by S-27 Virus with Autogun Performance ------------- Evolutions (5) 2500 Regions Visited (15) 3000 Robots Destroyed (86) 430 Value Destroyed (2752) 2752 Prototype IDs (240) 4800 Alien Tech Used (0) 0 Bonus (4258) 4258 TOTAL SCORE: 17740 Bonus ------- Follower Combat Kills 180 Entered DSFs 500 Aligned with FarCom 300 Met Data Miner 300 Used Data Conduit 3000 Friendly Fire -22 Cogmind --------- Core Integrity 0/1000 Matter 280/300 Energy 99/100 System Corruption 14% Temperature Cool (2) Movement Hovering (60) Location -5/Factory Parts ------- > --- POWER (2) -------- (None) > --- PROPULSION (6) --- Combat Linear Gravjet > --- UTILITY (7) ------ (None) > --- WEAPON (2) ------- (None) > --- INVENTORY (5) ---- Medium Storage Unit High-capacity Storage Unit Weight Redist. System Improved Reaction Control System Layered Light Armor Plating Peak State ------------ > --- POWER ------------ Light Deuterium Engine > --- PROPULSION ------- Gravmag System Combat Airjet Combat Airjet Gravmag Array > --- UTILITY ---------- High-capacity Storage Unit Weight Redist. System Experimental Sensor Array Layered Light Armor Plating Hacking Suite > --- WEAPON ----------- AWS/Thermal > --- INVENTORY -------- Gravmag System Gravmag System Gravmag System Advanced Heat Sink Medium Storage Unit Improved Propulsion Shielding Layered Light Armor Plating Layered Light Armor Plating Layered Light Armor Plating System Shield Trap Reconfigurator Thief Drone Bay PSU Rigger Improved Spread Laser Improved Spread Laser Improved Spread Laser Improved Spread Laser Rocket Launcher [Rating: 70] Favorites ----------- Power Ion Engine Engine Ion Engine Power Core Nuclear Core Propulsion Improved Treads Treads Improved Treads Wheel Armored Huge Wheel Hover Unit Combat Airjet Utility High-capacity Storage Unit Device Advanced Heat Sink Storage High-capacity Storage Unit Processor Improved Signal Interpreter Hackware Hacking Suite Protection Medium Armor Plating Weapon Heavy Assault Rifle Energy Gun AWS/Thermal Energy Cannon Advanced Beam Cannon Ballistic Gun Heavy Assault Rifle Launcher Rocket Launcher Slashing Weapon Power Sword Build | -11 -10 -10 -10 -9 -8 -7 -7 -7 -7 -6 -6 -6 -5 -5 -5 ------- Run | Yrd Mat Min Exi Min Mat Fac Low Low Dat Pro Fac DSF Fac Was Fac Slots Evolved 10 | . . . . . 4 2 . . . . 2 . 2 . . Power 1 | . . . . . . . . . . . . . 1 . . Propulsion 4 | . . . . . 2 1 . . . . 1 . . . . Utility 5 | . . . . . 2 1 . . . . 1 . 1 . . Weapon . | . . . . . . . . . . . . . . . . Parts Attached 74 | 7 9 1 1 1 30 5 5 3 2 4 . 1 3 1 1 Power 12 | 1 1 . . . 6 1 . 1 . . . . 1 1 . Engine 10 | 1 1 . . . 5 1 . 1 . . . . . 1 . Core 2 | . . . . . 1 . . . . . . . 1 . . Reactor . | . . . . . . . . . . . . . . . . Propulsion 20 | 2 2 . . . 11 2 1 . . 1 . . . . 1 Treads 9 | 2 2 . . . 5 . . . . . . . . . . Leg . | . . . . . . . . . . . . . . . . Wheel 2 | . . . . . 2 . . . . . . . . . . Hover 9 | . . . . . 4 2 1 . . 1 . . . . 1 Flight . | . . . . . . . . . . . . . . . . Utility 24 | 2 2 1 1 1 8 1 1 2 . 3 . . 2 . . Device 7 | 1 . . . 1 4 . . 1 . . . . . . . Storage 4 | 1 1 . 1 . . . . . . 1 . . . . . Processor 1 | . . . . . . . . . . . . . 1 . . Hackware 5 | . 1 . . . 1 . . . . 2 . . 1 . . Protection 7 | . . 1 . . 3 1 1 1 . . . . . . . Artifact . | . . . . . . . . . . . . . . . . Weapon 18 | 2 4 . . . 5 1 3 . 2 . . 1 . . . Energy Gun 6 | 1 . . . . 1 1 2 . . . . 1 . . . Energy Cannon 3 | . . . . . 2 . 1 . . . . . . . . Ballistic Gun 6 | 1 3 . . . 2 . . . . . . . . . . Ballistic Cannon . | . . . . . . . . . . . . . . . . Launcher 1 | . 1 . . . . . . . . . . . . . . Special Weapon . | . . . . . . . . . . . . . . . . Impact Weapon . | . . . . . . . . . . . . . . . . Slashing Weapon 2 | . . . . . . . . . 2 . . . . . . Piercing Weapon . | . . . . . . . . . . . . . . . . Special Melee Weapon . | . . . . . . . . . . . . . . . . Unidentified Prototypes 6 | . . . . 1 4 1 . . . . . . . . . Corrupted Parts 1 | . . . . . . . . . . . . . . . 1 System Corruption 8 | . . . . . . . . . . . . . . . 8 Parts Lost 25 | . . 1 . . 2 1 . 5 1 2 . 7 4 2 . Power 5 | . . . . . 1 1 . 1 . 1 . . . 1 . Propulsion 7 | . . . . . . . . 1 1 1 . 4 . . . Utility 10 | . . 1 . . 1 . . 3 . . . 2 2 1 . Weapon 3 | . . . . . . . . . . . . 1 2 . . Highest Loss Streak 7 | . . 1 . . 2 1 . 5 1 2 . 7 4 2 . To Critical Strikes . | . . . . . . . . . . . . . . . . Average Backups 15 | 4 11 14 16 19 19 16 19 15 12 10 8 8 4 5 5 Power . | . . . . . . . 1 . . . . . . . . Propulsion 3 | 1 2 3 4 4 5 2 2 1 1 . . . . . . Utility 8 | . 4 7 8 11 11 10 10 8 5 4 2 2 3 4 4 Weapon 3 | 1 3 4 4 3 1 4 5 6 6 6 6 5 . . . Tool/Special . | . . . . . . . . . . . . . . . . Unused Backups 29 | . 5 3 . 1 11 1 . 2 . 1 . 3 . . 2 Power 1 | . 1 . . . . . . . . . . . . . . Propulsion 2 | . . 2 . . . . . . . . . . . . . Utility 17 | . 3 1 . . 8 . . 2 . . . 1 . . 2 Weapon 9 | . 1 . . 1 3 1 . . . 1 . 2 . . . Tool/Special . | . . . . . . . . . . . . . . . . Average Slot Usage (%) 90 | . 99 98 100 100 91 83 89 74 76 76 77 64 18 9 1 Engine 10 | . 14 14 14 14 7 4 7 6 7 2 . . . 1 . Treads 22 | . 28 28 28 28 31 . . . . . . . . . . Hover 6 | . . . . . . 33 30 29 30 30 26 19 . . 1 Device 4 | . 6 . . . 7 13 7 3 7 4 10 10 . . . Storage 10 | . 14 14 14 14 9 7 7 7 7 7 6 5 . . . Hackware 5 | . 7 . . . 8 7 7 7 7 15 20 19 12 8 . Protection 8 | . . 11 14 14 10 8 15 2 . . . . . . . Energy Gun 2 | . . . . . 4 3 10 15 6 . . 6 . . . Energy Cannon 1 | . . . . . 6 . 1 . . . . . . . . Ballistic Gun 14 | . 27 28 28 28 1 . . . . . . . . . . Peak Build Rating 70 | 7 15 15 19 24 57 70 63 56 55 52 60 61 26 7 10 Average Rating 29 | 4 12 14 17 19 43 60 56 48 48 47 58 47 12 4 5 On Entrance 27 | . 7 15 15 19 20 39 49 56 48 43 52 60 8 7 1 Naked Turns 23 | . . . . . . . . . . . . . . 11 12 Heaviest Build 67 | 14 32 38 58 58 67 58 58 57 53 49 18 20 3 3 . Greatest Support 92 | 40 46 46 46 46 92 59 59 59 53 50 18 50 3 3 14 Greatest Overweight (x) 16 | . . . 1 1 2 16 1 1 . 1 . 6 . . . Average Overweight (x) . | . . . . 1 . . . . . . . . . . . Largest Inventory Capacity 20 | 8 15 15 20 20 20 20 20 20 20 20 10 10 5 5 5 Average Capacity 17 | 7 12 15 19 20 20 20 20 20 20 14 10 9 5 5 5 Most Carried 20 | 6 15 15 20 20 20 20 20 19 15 13 9 10 5 5 5 Average Carried 16 | 4 11 14 17 19 19 16 19 15 12 10 8 8 4 4 4 Final Capacity 20 | 8 15 15 20 20 20 20 20 20 20 10 10 5 5 5 5 Final Carried 20 | 5 15 15 20 20 17 19 19 13 12 9 8 5 5 5 5 Class Distribution -------------------- 80% | Mutant 13% | Scavenger-Mutant 6% | Hacker-Mutant Dominant Class ---------------- Mutant | -10/Materials Mutant | -10/Mines Mutant | -10/Exiles Mutant | -9/Mines Mutant | -8/Materials Scavenger-Mutant | -7/Factory Scavenger-Mutant | -7/Lower Caves Scavenger-Mutant | -7/Lower Caves Scavenger-Mutant | -7/Data Miner Hacker-Mutant | -6/Proximity Caves Hacker-Mutant | -6/Factory Hacker-Mutant | -6/DSF Hacker-Mutant | -5/Factory Hacker-Mutant | -5/Waste Mutant | -5/Factory Resources | -11 -10 -10 -10 -9 -8 -7 -7 -7 -7 -6 -6 -6 -5 -5 -5 ----------- Run | Yrd Mat Min Exi Min Mat Fac Low Low Dat Pro Fac DSF Fac Was Fac Matter Collected 1969 | 287 450 261 . 50 384 77 169 63 . 102 . 45 81 . . Remotely . | . . . . . . . . . . . . . . . . Salvage Created 3455 | 51 579 155 . 96 1291 693 169 133 . 44 . 45 199 . . Parts 184 | 7 47 14 . 10 53 28 4 4 . 2 . 3 12 . . Haulers Intercepted 2 | . 1 . . . 1 . . . . . . . . . . Recyclers Shooed 1 | 1 . . . . . . . . . . . . . . . Parts Field Recycled . | . . . . . . . . . . . . . . . . Retrieved Matter . | . . . . . . . . . . . . . . . . Parts Self-Destructed 7 | . . . . . . . . 6 . 1 . . . . . Prevented . | . . . . . . . . . . . . . . . . Kills | -11 -10 -10 -10 -9 -8 -7 -7 -7 -7 -6 -6 -6 -5 -5 -5 ------- Run | Yrd Mat Min Exi Min Mat Fac Low Low Dat Pro Fac DSF Fac Was Fac Combat Hostiles Destroyed 63 | . 15 2 . 1 25 12 . 3 . 1 . 1 3 . . Melee 3 | . . . . . . . . . . 1 . . 2 . . Guns 47 | . 13 2 . 1 19 7 . 3 . . . 1 1 . . Cannons 5 | . . . . . 5 . . . . . . . . . . AOE 6 | . 2 . . . . 4 . . . . . . . . . Classes Destroyed 16 | 1 6 2 . . 2 3 1 . . . . 1 . . . Worker 2 | . 1 . . 1 . . . . . . . . . . . Builder 2 | . . 1 . . . 1 . . . . . . . . . Tunneler 7 | 2 . 1 . 2 . 1 . . . . . . 1 . . Hauler 2 | . 1 . . . 1 . . . . . . . . . . Recycler 2 | . . 1 . . . 1 . . . . . . . . . Operator 2 | . 2 . . . . . . . . . . . . . . Watcher 6 | . 2 . . . 3 1 . . . . . . . . . Swarmer 15 | . 6 2 . . 4 . . 3 . . . . . . . Grunt 29 | . 9 . . 1 13 5 . . . . . . 1 . . Brawler 1 | . . . . . . 1 . . . . . . . . . Duelist 4 | . . . . . 2 2 . . . . . . . . . Sentry 10 | . . . . . 6 2 . . . . . . 2 . . Specialist 1 | . . . . . . . . . . . . 1 . . . Hunter 1 | . . . . . . 1 . . . . . . . . . Programmer 2 | . . . . . . 1 . . . 1 . . . . . Packrat 1 | . . . . . . . . 1 . . . . . . . Samaritan 3 | . . . . . . . 3 . . . . . . . . Best Kill Streak 5 | 1 5 1 . 1 5 5 . 3 . 1 . 1 3 . . Combat Bots Only 5 | . 5 1 . 1 5 4 . 3 . 1 . 1 2 . . Max Kills in Single Turn 2 | 1 2 1 . 1 1 2 1 2 . 1 . 1 2 . . Gunslinging . | . . . . . . . . . . . . . . . . Exploded 2 | . 2 . . . . 1 . . . . . . . . . Melee 1 | . . . . . . . . . . 1 . . 1 . . Uniques/NPCs Destroyed . | . . . . . . . . . . . . . . . . Combat | -11 -10 -10 -10 -9 -8 -7 -7 -7 -7 -6 -6 -6 -5 -5 -5 -------- Run | Yrd Mat Min Exi Min Mat Fac Low Low Dat Pro Fac DSF Fac Was Fac Hostile Shots Fired 566 | . 82 6 . . 130 97 . 84 11 8 3 39 89 3 14 Missed 190 | . 28 1 . . 35 45 . 28 4 1 1 10 31 1 5 Hits 376 | . 54 5 . . 95 52 . 56 7 7 2 29 58 2 9 Melee 21 | . . . . . . . . 3 . . . 16 . 2 . Projectile 355 | . 54 5 . . 95 52 . 53 7 7 2 13 58 . 9 AOE 2 | . . . . . . . . . . . . 2 . . . Critical Strikes 16 | . 1 . . . 2 1 . 1 . 1 . 5 3 2 . Damage Taken 5582 | . 548 41 . . 1152 599 . 848 308 104 39 615 1076 112 140 Core 1958 | . 62 . . . 164 113 . 103 111 14 . 387 766 112 126 Absorbed by Shields . | . . . . . . . . . . . . . . . . Redirected to Shielding 109 | . . . . . . 26 . 83 . . . . . . . Core Remaining (%) 70 | 100 . . . 75 70 . . . . 51 . 54 . . . Volleys Fired 163 | 7 56 11 . 5 35 18 10 11 . . . 4 6 . . Largest 2 | 2 2 2 . 2 2 1 1 2 . . . 2 1 . . Hottest 150 | 60 46 46 . 46 136 33 75 150 . . . 150 75 . . Shots Fired 412 | 14 110 22 . 10 145 70 10 20 . . . 5 6 . . Gun 320 | 14 108 22 . 10 83 52 . 20 . . . 5 6 . . Cannon 72 | . . . . . 62 . 10 . . . . . . . . Launcher 20 | . 2 . . . . 18 . . . . . . . . . Special . | . . . . . . . . . . . . . . . . Kinetic 155 | 7 108 22 . 10 8 . . . . . . . . . . Thermal 227 | 7 . . . . 137 52 . 20 . . . 5 6 . . Explosive 20 | . 2 . . . . 18 . . . . . . . . . Electromagnetic 10 | . . . . . . . 10 . . . . . . . . Robot Hit Streak 28 | 4 8 3 . 11 28 18 3 4 . . . 4 9 . . Robot Miss Streak 14 | 2 8 4 . . 3 1 1 12 . . . 14 2 . . Penetration Max . | . . . . . . . . . . . . . . . . Secondary Targets 5 | . 3 2 . . . . . . . . . . . . . Max Gunslinging Chain 1 | . 1 1 . . . . . . . . . . . . . Autonomous 128 | . . . . . 75 53 . . . . . . . . . Shots Hit Robots 303 | 8 55 11 . 8 114 57 7 16 2 1 . 10 14 . . Core Hits 155 | 3 26 6 . 5 36 27 5 20 . 1 . 9 17 . . Critical Kills 1 | . . . . . 1 . . . . . . . . . . Critical Parts Destroyed . | . . . . . . . . . . . . . . . . Critical Strikes 3 | . . . . . 1 . . . . . . 2 . . . Meltdown 1 | . . . . . 1 . . . . . . . . . . Sever 2 | . . . . . . . . . . . . 2 . . . Melee Attacks 31 | . . . . . . . . . 2 2 6 7 14 . . Impact . | . . . . . . . . . . . . . . . . Slashing 31 | . . . . . . . . . 2 2 6 7 14 . . Piercing . | . . . . . . . . . . . . . . . . Sneak Attacks 4 | . . . . . . . . . 2 . . 1 1 . . Combat Hostiles 1 | . . . . . . . . . . . . 1 . . . Follow-up Attacks 2 | . . . . . . . . . 1 . . 1 . . . Damage Inflicted 8215 | 94 1070 235 . 122 3002 2034 240 282 88 50 . 420 578 . . Guns 5388 | 94 897 224 . 119 2094 1375 . 282 . . . 122 181 . . Cannons 1148 | . . . . . 908 . 240 . . . . . . . . Explosions 832 | . 173 . . . . 659 . . . . . . . . . Melee 830 | . . . . . . . . . 88 50 . 298 394 . . Ramming 17 | . . 11 . 3 . . . . . . . . 3 . . Kinetic 1397 | 62 897 224 . 119 95 . . . . . . . . . . Thermal 4899 | 32 . . . . 2907 1375 . 282 . . . 122 181 . . Explosive 832 | . 173 . . . . 659 . . . . . . . . . Electromagnetic 240 | . . . . . . . 240 . . . . . . . . Impact . | . . . . . . . . . . . . . . . . Slashing 830 | . . . . . . . . . 88 50 . 298 394 . . Piercing . | . . . . . . . . . . . . . . . . Highest Corruption 14 | . . . . . . . . . . 2 . . . 6 14 Average Corruption 3 | . . . . . . . . . . 1 . . . 6 10 Corruption Purged . | . . . . . . . . . . . . . . . . Corruption Blocked . | . . . . . . . . . . . . . . . . Effects 5 | . . . . . . . . . . 1 . . . 2 2 Message Errors 1 | . . . . . . . . . . . . . . . 1 Energy Discharges 3 | . . . . . . . . . . 1 . . . 2 . Misdirections 1 | . . . . . . . . . . . . . . . 1 Overload Shots . | . . . . . . . . . . . . . . . . Overflow Damage 173 | . 38 . . . 28 25 53 . 28 . . 1 . . . Projectiles 81 | . . . . . 28 . 53 . . . . . . . . Explosions 63 | . 38 . . . . 25 . . . . . . . . . Melee 29 | . . . . . . . . . 28 . . 1 . . . Knockbacks . | . . . . . . . . . . . . . . . . Impact . | . . . . . . . . . . . . . . . . Kinetic . | . . . . . . . . . . . . . . . . Secondary . | . . . . . . . . . . . . . . . . Self-Inflicted Damage 1 | . . . . . . . . . . . . . 1 . . Shots . | . . . . . . . . . . . . . . . . Rammed 5 | . . . . 1 . . . . . . . . 4 . . Targets Rammed 6 | . . 1 . 1 . . . . . . . . 4 . . Kicked . | . . . . . . . . . . . . . . . . Crushed 1 | . . 1 . . . . . . . . . . . . . Highest Temperature 303 | . 22 . . . 252 7 263 303 . . . . 104 . . Average Temperature 81 | . 4 . . . 57 2 123 137 . . . . 45 . . Received Heat Transfer 1257 | . 219 . . . 432 240 . 60 . . . 36 270 . . Siege Activations . | . . . . . . . . . . . . . . . . Martial Activations . | . . . . . . . . . . . . . . . . Shielding Activations . | . . . . . . . . . . . . . . . . Robots Disrupted . | . . . . . . . . . . . . . . . . Combat Hostiles . | . . . . . . . . . . . . . . . . Robots Corrupted 1 | . . . . . . . 1 . . . . . . . . Combat Hostiles . | . . . . . . . . . . . . . . . . Parts Fried 5 | . . . . . . . 5 . . . . . . . . Impact Corruptions . | . . . . . . . . . . . . . . . . Robots Melted 2 | . . . . . 1 1 . . . . . . . . . Combat Hostiles 2 | . . . . . 1 1 . . . . . . . . . Parts Melted 14 | . . . . . 9 5 . . . . . . . . . Heat Transferred 6485 | 75 . . . . 4181 1739 . 235 . . . 100 155 . . Parts Sabotaged . | . . . . . . . . . . . . . . . . Parts Stolen 2 | . . . . . . . . 2 . . . . . . . Parts Stripped . | . . . . . . . . . . . . . . . . Power Chain Reactions . | . . . . . . . . . . . . . . . . Alert | -11 -10 -10 -10 -9 -8 -7 -7 -7 -7 -6 -6 -6 -5 -5 -5 ------- Run | Yrd Mat Min Exi Min Mat Fac Low Low Dat Pro Fac DSF Fac Was Fac Maximum Alert Level 1 | . . . . . 1 1 . . . . . . . . . Low Security (%) 74 | 100 100 100 . 100 41 15 . . . . 100 100 100 100 100 Level 1 25 | . . . . . 58 84 . . . . . . . . . Level 2 . | . . . . . . . . . . . . . . . . Level 3 . | . . . . . . . . . . . . . . . . Level 4 . | . . . . . . . . . . . . . . . . Level 5 . | . . . . . . . . . . . . . . . . High Security . | . . . . . . . . . . . . . . . . Max Security . | . . . . . . . . . . . . . . . . Peak Influence 391 | 5 148 76 . 41 391 366 . . . . 2 25 111 38 . Initial 168 | . . 21 . . . 168 . . . . . . 2 38 . Average 98 | . 67 8 . 1 198 267 . . . . . 6 41 23 . Influence Increases 2395 | 10 460 110 . 79 903 446 . 85 . 30 3 50 219 . . Destroy 0b10 Robot/C 1460 | . 300 80 . 40 640 240 . 60 . 20 . 20 60 . . Destroy 0b10 Robot/NC 120 | 10 30 15 . 15 25 20 . . . . . . 5 . . Destroy Leader 338 | . 66 10 . 10 140 72 . 10 . 10 . . 20 . . Allied During Kill 65 | . . 5 . 14 46 . . . . . . . . . . Successful Hack 69 | . 32 . . . 2 21 . . . . . . 14 . . Disable Machine 90 | . 15 . . . 15 15 . . . . . . 45 . . Destroy Structure 103 | . 17 . . . 5 78 . . . . 3 . . . . Lose Combat Pursuer 150 | . . . . . 30 . . 15 . . . 30 75 . . Influence Decreases 2395 | 10 406 164 . 79 531 460 293 150 . 30 2 46 113 111 . Entered New Map 460 | . . 33 . . . 204 133 13 . . . 1 3 73 . Time Decay 1672 | 10 406 121 . 59 471 246 160 87 . 30 2 . 70 10 . Lost Part 185 | . . 10 . . 20 10 . 50 . . . 45 40 10 . Lost Ally 78 | . . . . 20 40 . . . . . . . . 18 . Squads Dispatched 14 | . 2 . . . 1 7 . . . . . 2 1 . 1 Investigation 3 | . 1 . . . . 1 . . . . . . . . 1 Extermination 1 | . . . . . . 1 . . . . . . . . . Reinforcement 7 | . 1 . . . 1 2 . . . . . 2 1 . . Assault . | . . . . . . . . . . . . . . . . Garrison 3 | . . . . . . 3 . . . . . . . . . Intercept . | . . . . . . . . . . . . . . . . Searches Triggered . | . . . . . . . . . . . . . . . . Construction Impeded 1 | . . . . . . 1 . . . . . . . . . Haulers Reinforced 1 | . . . . . . . . . . . . . 1 . . Active Scanning Responses . | . . . . . . . . . . . . . . . . Cargo Convoy Interrupts . | . . . . . . . . . . . . . . . . Stealth | -11 -10 -10 -10 -9 -8 -7 -7 -7 -7 -6 -6 -6 -5 -5 -5 --------- Run | Yrd Mat Min Exi Min Mat Fac Low Low Dat Pro Fac DSF Fac Was Fac Distress Signals 4 | . . . . . 2 1 . . . . . . 1 . . Communications Jammed . | . . . . . . . . . . . . . . . . Distress Signals . | . . . . . . . . . . . . . . . . Times Spotted 131 | . 22 6 . 1 41 16 . 7 4 1 1 11 12 6 3 Peak Tracking Total 10 | . 4 3 . 1 6 4 . 5 4 1 2 8 10 6 3 Tactical Retreats 5 | . . . . . 1 . . 1 . . . 2 1 . . Traps | -11 -10 -10 -10 -9 -8 -7 -7 -7 -7 -6 -6 -6 -5 -5 -5 ------- Run | Yrd Mat Min Exi Min Mat Fac Low Low Dat Pro Fac DSF Fac Was Fac Traps Triggered 6 | . . . . . 1 2 . . . . . 1 1 . 1 Indirectly . | . . . . . . . . . . . . . . . . Trap Hack Attempts . | . . . . . . . . . . . . . . . . Triggered . | . . . . . . . . . . . . . . . . Disarmed 12 | . 6 . . . 6 . . . . . . . . . . Reprogrammed . | . . . . . . . . . . . . . . . . Reused . | . . . . . . . . . . . . . . . . Traps Extracted . | . . . . . . . . . . . . . . . . Installed . | . . . . . . . . . . . . . . . . Triggered . | . . . . . . . . . . . . . . . . Machines | -11 -10 -10 -10 -9 -8 -7 -7 -7 -7 -6 -6 -6 -5 -5 -5 ---------- Run | Yrd Mat Min Exi Min Mat Fac Low Low Dat Pro Fac DSF Fac Was Fac Machines Disabled 6 | . 1 . . . 1 1 . . . . . . 3 . . Max in Single Turn 1 | . 1 . . . 1 1 . . . . . . 1 . . Garrison Access 1 | . . . . . 1 . . . . . . . . . . Machines Repaired . | . . . . . . . . . . . . . . . . Machines Dismantled . | . . . . . . . . . . . . . . . . Machines Sabotaged . | . . . . . . . . . . . . . . . . Overloaded Fab Kills . | . . . . . . . . . . . . . . . . Hacking | -11 -10 -10 -10 -9 -8 -7 -7 -7 -7 -6 -6 -6 -5 -5 -5 --------- Run | Yrd Mat Min Exi Min Mat Fac Low Low Dat Pro Fac DSF Fac Was Fac Machines Accessed 34 | . 8 . 2 1 9 5 1 . 4 . 1 . 2 . 1 Terminals 17 | . 6 . . . 6 1 . . . . 1 . 2 . 1 Fabricators 3 | . . . . . . 3 . . . . . . . . . Repair Stations . | . . . . . . . . . . . . . . . . Recycling Units 5 | . 2 . . . 2 1 . . . . . . . . . Scanalyzers . | . . . . . . . . . . . . . . . . Garrison Access 1 | . . . . . 1 . . . . . . . . . . Total Hacks 103 | . 29 . 2 1 24 9 1 . 27 . 3 . 5 . 2 Successful 69 | . 19 . 2 1 15 2 1 . 27 . 1 . 1 . . Failed 34 | . 10 . . . 9 7 . . . . 2 . 4 . 2 Catastrophic 6 | . 2 . . . 1 . . . . . . . 2 . 1 Database Lockouts . | . . . . . . . . . . . . . . . . Manual 39 | . 17 . 1 . 12 2 . . . . . . 5 . 2 Terminals 54 | . 25 . . . 17 2 . . . . 3 . 5 . 2 Fabricators 4 | . . . . . . 4 . . . . . . . . . Repair Stations . | . . . . . . . . . . . . . . . . Recycling Units 13 | . 4 . . . 6 3 . . . . . . . . . Scanalyzers . | . . . . . . . . . . . . . . . . Garrison Access 1 | . . . . . 1 . . . . . . . . . . Terminal Hacks 45 | . 10 . 2 1 3 . 1 . 27 . 1 . . . . Record 12 | . . . 1 . . . . . 11 . . . . . . Part Schematic 9 | . 1 . . . . . . . 8 . . . . . . Robot Schematic 5 | . . . . . . . . . 5 . . . . . . Prototype ID Bank 3 | . . . . . . . . . 3 . . . . . . Open Door 2 | . . . . 1 . . 1 . . . . . . . . Open DSF 1 | . . . . . . . . . . . 1 . . . . Branch Access Points 1 | . 1 . . . . . . . . . . . . . . Alert Level 1 | . 1 . . . . . . . . . . . . . . Locate Traps 1 | . . . . . 1 . . . . . . . . . . Disarm Traps 2 | . 1 . . . 1 . . . . . . . . . . Recall Investigation 2 | . 2 . . . . . . . . . . . . . . Registered Components 2 | . 1 . . . 1 . . . . . . . . . . Zone Layout 3 | . 3 . . . . . . . . . . . . . . Proto ID Catalog 1 | . . . 1 . . . . . . . . . . . . Fabricator Hacks 2 | . . . . . . 2 . . . . . . . . . Network Status 1 | . . . . . . 1 . . . . . . . . . Build 1 | . . . . . . 1 . . . . . . . . . Repair Station Hacks . | . . . . . . . . . . . . . . . . Recycling Unit Hacks 4 | . . . . . 4 . . . . . . . . . . Retrieve Components 4 | . . . . . 4 . . . . . . . . . . Scanalyzer . | . . . . . . . . . . . . . . . . Garrison Access Hacks 1 | . . . . . 1 . . . . . . . . . . Seal Access 1 | . . . . . 1 . . . . . . . . . . Unauthorized Hacks 17 | . 9 . . . 7 . . . . . . . 1 . . Terminals 16 | . 8 . . . 7 . . . . . . . 1 . . Botnet 5 | . 3 . . . 2 . . . . . . . . . . Skim 11 | . 5 . . . 5 . . . . . . . 1 . . Fabricators . | . . . . . . . . . . . . . . . . Repair Stations . | . . . . . . . . . . . . . . . . Recycling Units 1 | . 1 . . . . . . . . . . . . . . Mask 1 | . 1 . . . . . . . . . . . . . . Scanalyzers . | . . . . . . . . . . . . . . . . Garrison Access . | . . . . . . . . . . . . . . . . Data Cores Recovered . | . . . . . . . . . . . . . . . . Used . | . . . . . . . . . . . . . . . . Hacking Detections 20 | . 6 . . . 6 4 . . . . 1 . 2 . 1 Full Trace Events 2 | . 1 . . . . . . . . . . . . . 1 Feedback Events . | . . . . . . . . . . . . . . . . Feedback Blocked . | . . . . . . . . . . . . . . . . Robot Schematics Acquired 5 | . . . . . . . . . 5 . . . . . . Robots Built . | . . . . . . . . . . . . . . . . Authchips . | . . . . . . . . . . . . . . . . Time . | . . . . . . . . . . . . . . . . Total Robot Build Rating . | . . . . . . . . . . . . . . . . Part Schematics Acquired 9 | . 1 . . . . . . . 8 . . . . . . Parts Built 1 | . . . . . . 1 . . . . . . . . . Authchips . | . . . . . . . . . . . . . . . . Time 31 | . . . . . . 31 . . . . . . . . . Total Part Build Rating 5 | . . . . . . 5 . . . . . . . . . Parts Repaired . | . . . . . . . . . . . . . . . . Time . | . . . . . . . . . . . . . . . . Parts Recycled . | . . . . . . . . . . . . . . . . Recycled Matter . | . . . . . . . . . . . . . . . . Retrieved Matter . | . . . . . . . . . . . . . . . . Retrieved Components 20 | . . . . . 20 . . . . . . . . . . Parts Scanalyzed . | . . . . . . . . . . . . . . . . Part Schematics Acquired . | . . . . . . . . . . . . . . . . Parts Damaged . | . . . . . . . . . . . . . . . . Bothacking | -11 -10 -10 -10 -9 -8 -7 -7 -7 -7 -6 -6 -6 -5 -5 -5 ------------ Run | Yrd Mat Min Exi Min Mat Fac Low Low Dat Pro Fac DSF Fac Was Fac Used RIF Installer . | . . . . . . . . . . . . . . . . Robots Hacked . | . . . . . . . . . . . . . . . . Non-combat . | . . . . . . . . . . . . . . . . Combat . | . . . . . . . . . . . . . . . . Robot Hacks Applied . | . . . . . . . . . . . . . . . . Relay Couplers Released . | . . . . . . . . . . . . . . . . Fabnet Peak Effective % . | . . . . . . . . . . . . . . . . Robots Rewired . | . . . . . . . . . . . . . . . . Allies Hacked . | . . . . . . . . . . . . . . . . Hacks Repelled . | . . . . . . . . . . . . . . . . Allies | -11 -10 -10 -10 -9 -8 -7 -7 -7 -7 -6 -6 -6 -5 -5 -5 -------- Run | Yrd Mat Min Exi Min Mat Fac Low Low Dat Pro Fac DSF Fac Was Fac Total Allies 5 | . . 4 . . . . . . . . . . . 1 . Largest Group 4 | . . 4 4 3 3 . . . . . . . . 1 . Highest-Rated Group 71 | . . 71 71 55 55 . . . . . . . . 31 . Highest-Rated Ally 31 | . . 31 31 31 31 . . . . . . . . 31 . Total Orders . | . . . . . . . . . . . . . . . . Ally Attacks 68 | . . 11 . 10 35 . . . 5 . . . . 7 . Total Damage 646 | . . 105 . 105 349 . . . 23 . . . . 64 . Kills 11 | . . 2 . 1 8 . . . . . . . . . . Allies Corrupted 1 | . . . . . 1 . . . . . . . . . . Allies Melted . | . . . . . . . . . . . . . . . . Intel | -11 -10 -10 -10 -9 -8 -7 -7 -7 -7 -6 -6 -6 -5 -5 -5 ------- Run | Yrd Mat Min Exi Min Mat Fac Low Low Dat Pro Fac DSF Fac Was Fac Active Infowar (turns) 1063 | 20 509 . . . 2 306 77 . . . 34 115 . . . Sensors 534 | . . . . . 2 306 77 . . . 34 115 . . . Seismic 529 | 20 509 . . . . . . . . . . . . . . Robot Analysis Total 151 | . . . . . . . . . 151 . . . . . . Derelict Logs Recovered 4 | . . 1 . 1 . . 1 . . 1 . . . . . Drone Launches 3 | . . . . . . . . . 3 . . . . . . Drone Recoveries . | . . . . . . . . . . . . . . . . Exploration | -11 -10 -10 -10 -9 -8 -7 -7 -7 -7 -6 -6 -6 -5 -5 -5 ------------- Run | Yrd Mat Min Exi Min Mat Fac Low Low Dat Pro Fac DSF Fac Was Fac Turns Passed 8324 | 146 1115 989 949 1266 2036 529 330 207 96 231 45 151 159 48 27 Spaces Moved 5096 | 85 557 593 419 512 1142 359 288 263 114 294 51 102 181 91 45 Core 380 | 26 . . . . . 9 . . . . . 51 181 91 22 Treads 3092 | 59 557 593 419 512 952 . . . . . . . . . . Legs . | . . . . . . . . . . . . . . . . Wheels 166 | . . . . . 166 . . . . . . . . . . Hover 1458 | . . . . . 24 350 288 263 114 294 51 51 . . 23 Flight . | . . . . . . . . . . . . . . . . Fastest Speed 50 | 50 160 160 160 240 115 53 59 59 53 53 56 50 50 50 50 Average Speed 139 | 126 160 160 225 240 145 105 88 60 58 55 56 85 50 50 55 Slowest Speed 850 | 160 160 160 240 240 240 850 121 129 59 118 56 350 50 50 60 Overloaded Moves . | . . . . . . . . . . . . . . . . Propulsion Burnouts . | . . . . . . . . . . . . . . . . Robots Hopped . | . . . . . . . . . . . . . . . . Potential Cave-ins 2 | . . . . . . . . . . . 2 . . . . Cave-ins Triggered . | . . . . . . . . . . . . . . . . Exploration Rate (%) 49 | 5 83 94 69 92 73 11 40 50 78 58 2 54 5 72 2 Regions Visited 15 Branch Regions 7 Pre-discovered Areas 30 | . . 1 1 . 3 . 1 . 24 . . . . . . Known Exits Taken 3 | . 1 . . . 1 . . . . . 1 . . . . Unknown Exits Taken 9 | 1 . 1 1 1 . 1 1 1 1 1 . . . . . Scrap Searched 5 | . . 1 . 2 . . . 1 . 1 . . . . . Spaces Dug 6 | . . . . . . . . . . . 6 . . . . Terrain Destroyed 121 | . 16 . . . 5 94 . . . . 6 . . . . Melee 6 | . . . . . . . . . . . 6 . . . . Projectile 6 | . . . . . 5 1 . . . . . . . . . AOE 109 | . 16 . . . . 93 . . . . . . . . . Terrain Rammed . | . . . . . . . . . . . . . . . . Walls Destroyed . | . . . . . . . . . . . . . . . . Machines Disabled . | . . . . . . . . . . . . . . . . Actions | -11 -10 -10 -10 -9 -8 -7 -7 -7 -7 -6 -6 -6 -5 -5 -5 --------- Run | Yrd Mat Min Exi Min Mat Fac Low Low Dat Pro Fac DSF Fac Was Fac Total 6023 | 110 676 612 424 539 1454 495 351 290 142 359 57 154 221 92 47 Wait 440 | . 23 . . 13 185 67 37 8 20 52 . 28 7 . . Move 5082 | 84 556 592 418 511 1141 358 287 262 113 293 50 101 181 90 45 Hop . | . . . . . . . . . . . . . . . . Pick Up 98 | 12 20 4 4 3 21 15 4 2 . 4 . 4 3 1 1 Fast Attach 14 | . . . . . 11 . 1 . . . . . 2 . . Attach 59 | 7 4 1 . . 13 11 1 4 4 4 1 4 3 1 1 Detach 8 | . . . . . 2 2 . . 3 . . 1 . . . Swap 29 | . 5 . 1 3 10 2 7 . . 1 . . . . . Drop 82 | . 12 3 1 3 36 9 4 3 1 3 . 6 1 . . Fire 163 | 7 56 11 . 5 35 18 10 11 . . . 4 6 . . Melee 29 | . . . . . . . . . 1 2 6 6 14 . . Ram 4 | . . . . . . . . . . . . . 4 . . Kick . | . . . . . . . . . . . . . . . . Crush 2 | . . 1 . 1 . . . . . . . . . . . Escape Stasis 13 | . . . . . . 13 . . . . . . . . . Rewire . | . . . . . . . . . . . . . . . . Trap . | . . . . . . . . . . . . . . . . Miscellaneous . | . . . . . . . . . . . . . . . . Route ------- -11/Scrapyard -10/Materials (discovered 5 exits: *Mat x3 / *Min / Sub) -10/Mines (discovered 3 exits: *Mat x2 / *Exi) -10/Exiles -9/Mines (discovered 2 exits: *Mat x2) -8/Materials (discovered 4 exits: *Fac x3 / Sto) -7/Factory (discovered 2 exits: *Fac / *Low) -7/Lower Caves -7/Lower Caves -7/Data Miner -6/Proximity Caves -6/Factory -6/DSF -5/Factory -5/Waste -5/Factory History --------- Turn | Location | Event 10 | -11/Scrapyard | Discovered new exit (range 16) 147 | -11/Scrapyard | Entered Materials 232 | -10/Materials | Identified exit to Mines 285 | -10/Materials | Discovered new exit (range 14) 310 | -10/Materials | Build established: Mutant 706 | -10/Materials | Discovered new exit (range 11) 1260 | -10/Materials | Identified exit to Subcaves 1260 | -10/Materials | Identified exit to Materials 1262 | -10/Materials | Entered Mines 1263 | -10/Mines | Assembled infested the area 1263 | -10/Mines | Met a Derelict testing a Signal Generator 1277 | -10/Mines | Discovered exit to Materials (range 16) 1671 | -10/Mines | Discovered new exit (range 5) 1778 | -10/Mines | Received a Rocket Launcher from a helpful Derelict 1884 | -10/Mines | Learned location of Storage (-8) 2027 | -10/Mines | Learned Materials stockpile data 2077 | -10/Mines | Discovered exit to Materials (range 9) 2085 | -10/Mines | Assisted by bots powering up and referring to "LRC-V3" 2251 | -10/Mines | Entered Exiles 2251 | -10/Exiles | Accompanied by 4 allies 2291 | -10/Exiles | Met 8R-AWN 2317 | -10/Exiles | Met EX-HEX 2411 | -10/Exiles | Met EX-DEC 2452 | -10/Exiles | Learned location of Zion (-6) 2605 | -10/Exiles | Met EX-BIN 2639 | -10/Exiles | Aligned with FarCom system 2641 | -10/Exiles | Given EX-Vault access code 2696 | -10/Exiles | Opened EX-Vault 2713 | -10/Exiles | Found AWS/Thermal 2721 | -10/Exiles | Found Trap Reconfigurator 2730 | -10/Exiles | Found PSU Rigger 2781 | -10/Exiles | Warned to stay clear of 0b10 Research branches 3171 | -10/Exiles | Discovered new exit (range 14) 3200 | -10/Exiles | Stole three prototypes: Trap Reconfigurator, PSU Rigger, AWS/Thermal 3200 | -10/Exiles | Entered Mines 3200 | -9/Mines | Accompanied by 4 allies 3232 | -9/Mines | Met a Derelict bent on vengeance 3288 | -9/Mines | Discovered new exit (range 10) 3531 | -9/Mines | Found the Drone Emporium 3559 | -9/Mines | Found Prototype Device 4014 | -9/Mines | Found a damaged Exp. Sensor Array with a note attached 4019 | -9/Mines | Found Prototype Device 4297 | -9/Mines | Discovered new exit (range 10) 4463 | -9/Mines | Identified Thief Drone Bay 4466 | -9/Mines | Entered Materials 4466 | -8/Materials | Accompanied by 3 allies 4466 | -8/Materials | Evolved 4 slots: Propulsion x2, Utility x2 4467 | -8/Materials | Identified exit to Factory 4467 | -8/Materials | Identified exit to Storage 5426 | -8/Materials | Discovered exit to Factory (range 15) 5491 | -8/Materials | Identified Exp. Sensor Array 5496 | -8/Materials | Learned location of Extension (-4) 5566 | -8/Materials | Learned Storage stockpile data 5587 | -8/Materials | Learned 4 Factory zone layouts 5599 | -8/Materials | Learned Storage non-interactive machine intel 5600 | -8/Materials | Learned Factory garrison access intel 5601 | -8/Materials | Learned location of Recycling (-8) 5612 | -8/Materials | Learned Factory scanalyzer intel 5631 | -8/Materials | Learned location of 1 exit from Extension 5662 | -8/Materials | Learned location of 1 exit from Recycling 6502 | -8/Materials | Entered Factory 6502 | -7/Factory | Evolved 2 slots: Propulsion x1, Utility x1 6504 | -7/Factory | Loaded intel: 4 scanalyzer locations 6504 | -7/Factory | FarCom data flow suspended 6505 | -7/Factory | Loaded intel: 4 garrison access locations 6562 | -7/Factory | Garrison activated, responded to threat 6733 | -7/Factory | Fabricated Gravmag Array (x1) 6765 | -7/Factory | Build established: Scavenger-Mutant 6810 | -7/Factory | AWS/Thermal suddenly broke down 6889 | -7/Factory | Discovered new exit (range 16) 6947 | -7/Factory | Discovered new exit (range 6) 7031 | -7/Factory | Entered Lower Caves 7352 | -7/Lower Caves | Discovered new exit (range 5) 7361 | -7/Lower Caves | Entered another Lower Caves area 7369 | -7/Lower Caves | Spotted B-75 Beast 7431 | -7/Lower Caves | Lost 5 parts (1p1n3u) 7504 | -7/Lower Caves | Spotted PV-X5V(f) 7505 | -7/Lower Caves | Encountered a Master Thief 7509 | -7/Lower Caves | Spotted H8-65B(f) 7510 | -7/Lower Caves | Encountered a Master Thief 7513 | -7/Lower Caves | PSU Rigger stolen by Master Thief 7514 | -7/Lower Caves | Trap Reconfigurator stolen by Master Thief 7562 | -7/Lower Caves | Discovered new exit (range 6) 7568 | -7/Lower Caves | Entered Data Miner 7568 | -7/Data Miner | Discovered new exit (range 6) 7580 | -7/Data Miner | Met Data Miner 7590 | -7/Data Miner | Learned location of Section 7 (-3) 7590 | -7/Data Miner | Acquired the access code to Warlord's prototype stash 7600 | -7/Data Miner | Received God Mode back door access code from Data Miner 7641 | -7/Data Miner | Interfaced with the Data Conduit 7664 | -7/Data Miner | Entered Proximity Caves 7688 | -6/Proximity Caves | Lost 3 allies 7810 | -6/Proximity Caves | Spotted B-75 Beast 7860 | -6/Proximity Caves | Discovered new exit (range 15) 7881 | -6/Proximity Caves | Learned Factory terminal intel 7895 | -6/Proximity Caves | Entered Factory 7895 | -6/Factory | Evolved 2 slots: Propulsion x1, Utility x1 7896 | -6/Factory | Loaded intel: 298 machine locations 7897 | -6/Factory | Loaded intel: 26 terminal locations 7939 | -6/Factory | Identified exit to DSF 7940 | -6/Factory | Entered DSF 7941 | -6/DSF | Loaded intel: 3 machine locations 7969 | -6/DSF | Additional patrols routed to DSF 8083 | -6/DSF | Discovered new exit (range 16) 8091 | -6/DSF | Entered Factory 8091 | -5/Factory | Evolved 2 slots: Power x1, Utility x1 8092 | -5/Factory | Build established: Hacker-Mutant 8092 | -5/Factory | Loaded intel: 255 machine locations 8115 | -5/Factory | Lost 7 parts (4n2u1w) 8222 | -5/Factory | Core integrity fell below 50% 8239 | -5/Factory | Lost 4 parts (2u2w) 8250 | -5/Factory | Manually triggered Chute Trap 8250 | -5/Factory | Sucked down chute 8250 | -5/Factory | Entered Waste 8251 | -5/Waste | Met a frightened Derelict 8262 | -5/Waste | Spotted C-40 Crusher 8262 | -5/Waste | Spotted C-40 Crusher 8265 | -5/Waste | EMP discharged 8268 | -5/Waste | Spotted C-40 Crusher 8271 | -5/Waste | Spotted C-40 Crusher 8280 | -5/Waste | Spotted C-40 Crusher 8282 | -5/Waste | Crushed by Compactor (1 part destroyed, 1 dropped) 8283 | -5/Waste | Core integrity fell below 20% 8287 | -5/Waste | Discovered new exit (range 11) 8287 | -5/Waste | Spotted C-40 Crusher 8294 | -5/Waste | Crushed by Compactor (1 part destroyed) 8298 | -5/Waste | Entered Factory 8299 | -5/Factory | Loaded intel: 301 machine locations 8311 | -5/Factory | System corruption reached 10% 8325 | -5/Factory | Destroyed by S-27 Virus with Autogun Last Messages --------------- 08273_ System corrupted: Energy discharge (-31). 08282_ Mak. System Shield crushed. 08282_ Hacking Suite crushed. 08287_ EXIT=FOUND 08290_ Acquired Corrupted Cmb. Linear Gravjet. 08293_ System corrupted: Energy discharge (-26). 08294_ Lgt. Ion Engine crushed. LOCATION=UNKNOWN GOAL=ESCAPE Loading Factory machine intel (x301)... 08309_ RTYQZ BW 08318_ ALERT: All DSF locations entering lockdown mode. 08321_ Connecting with Terminal... 08321_ Current location identified: Factory 08321_ ALERT: Suspicious activity at Terminal F002. Dispatching Investigation squad. Map ----- +----------------------------------------------------+ | ????????????????"""????"""?"""??????????? | | ???????????????????????"""?"""??????????? | | ????????????????"""????"""?"""??????????? | | ????????????????"""?????????????????????? | | ????????????????"""?????????????????????? | | ????????????????????????????????????????? | | ????????????????????????????????????????? | | ????"""?????????????????????????????????? | | ????"""?????????????????????????????????? | | ????"""?????????????????????????????????? | | ??????????? ???????????????????????????? | | ???????????? ??????????????????????????? | | ???????????? ???????????????????"""????? | | ???????????? ???????????????????"""????? | | ???????????? ???????????????????"""????? | | ????????????# ??????????????????????????? | | ???"""??????# #####??"""?"""????????????? | | ??""F""?????# +??"""?"""????????????? | | ??""?""?????# #??"""?"""????????????? | | ????????????# #??????????????""""???? | | ????????????# #??"""?????????""""???? | | ??????"""???# #??"""?????????""""???? | | ??????"""???+ #??"""?????????""""???? | | ??????"""???# +??????????????""""???? | | ????????????# #??????????????""""???? | | ??"""?"""???# @ #?????????????????????? | | ??"""?"""???# ########??????????????? | | ??"""?"""???# s #??????????????? | | ????????????# #??????????????? | | ????????????# "" #??????????????? | | ????????????# T" +????????"""???? | | ????????????# "" #????"""?"Y"???? | | ????????????# #????"""???????? | | ????????????# #????"""???????? | | ????????????#s #??????????????? | | ????????????# #????"""?"""???? | | ############# s #????"""?"""???? | | # # #????"""?"""???? | | # # #??????????????? | | # # #??????????????? | | # !! # #??????????????? | | # ! #] #??????????????? | | # # #??????????????? | | # + #??????????????? | | # # #??????????????? | | # # #??????????????? | | # ##### #??????????????? | | # #???# ###????????????? | | # #???# #????????????? | | # #???# #????????????? | +----------------------------------------------------+ Best States ------------- Heat Dissipation 50 Coolant Potential 65 Energy Generation 19 Energy Capacity 315 Matter Stores 300 Matter Capacity 300 Sight Range 16 Robot Scan Range 20 Terrain Scan Density 10 Additional Mass Support 6 Armor Coverage 450 Propulsion Shielding 66 Evasion (%) 54 Recoil Reduction 4 Offensive Hacking 10 Defensive Hacking 21 Item Schematics ----------------- Flight Unit | -10/Materials | Hacked Combat Drone Bay | -7/Data Miner | Free Lgt. Regenerative Plating | -7/Data Miner | Free Cld. Cesium-ion Thruster | -7/Data Miner | Free Exp. Targeting Computer | -7/Data Miner | Free Force Rifle | -7/Data Miner | Free Thunder Leg | -7/Data Miner | Free Imp. Component Analysis Suite | -7/Data Miner | Free Imp. Remote Datajack | -7/Data Miner | Free Robot Schematics ------------------ B-48 Gladiator | -7/Data Miner | Free A-15 Conveyor | -7/Data Miner | Free G-47 Trooper | -7/Data Miner | Free I-36 Angel | -7/Data Miner | Free M-22 Extractor | -7/Data Miner | Free Fabricated ------------ Gravmag Array | x1 | -7/Factory | Preloaded Repaired ---------- Nothing Alien Tech Used ----------------- None Achievements -------------- None Challenges ------------ None Game ------ Seed IonPiercingBasin Manual? 0 Play Time 00:52:07 Cumulative 361.7 hours Start 2025.10.07 @ 10:51:57 End 2025.10.07 @ 11:48:05 Sessions 1 Manual Loads 0 Difficulty Rogue Special Mode None Game No. 479 Rogue 479 Adventurer 0 Explorer 0 Win Type - Total 11 Types 6/0/1/2/1/0/1/0/0/0 Lore% 87 Gallery% 83 Achievement% 70 Wizard Run 0 Options --------- Layout 0 ASCII 0 Keyboard 0 Movement Mouse Keybinds 0 Fullscreen 1 Font 24/Tamsyn Map View 76x50 Zoom Use 0% Tactical HUD 1 Map Filters NONE Filters NONE Steam 1 RUN: daf00bf0-6eaf-4d47-9cbb-172ed9d9486b